Cogmind - Beta 10.2 @@@ ROGUE MODE // 2021.08.08 @ 19:25:24 Player: thingamajigger Result: Self-destructed Performance ------------- Evolutions (3) 1500 Regions Visited (6) 1200 Robots Destroyed (56) 280 Value Destroyed (1846) 1846 Prototype IDs (8) 160 Alien Tech Used (0) 0 Bonus (174) 174 TOTAL SCORE: 5160 Bonus ------- High Alert Combat Kills 33 Follower Combat Kills 153 Friendly Fire -12 Cogmind --------- Core Integrity 531/700 Matter 54/300 Energy 100/100 System Corruption 3% Temperature Cool (0) Movement Core (900) Ox17 Location -7/Factory Parts ------- > --- POWER (1) -------- (None) > --- PROPULSION (6) --- (None) > --- UTILITY (2) ------ Large Storage Unit High-capacity Storage Unit > --- WEAPON (4) ------- Flak Gun > --- INVENTORY (18) --- High-capacity Matter Pod (0) Advanced Terrain Scanner Targeting Computer Kinecellerator Kinecellerator Hardened Medium Armor Plating Improved Light Armor Plating Improved Light Armor Plating Improved Medium Armor Plating System Backup Module Light Cannon Improved Grenade Launcher Improved Grenade Launcher Peak State ------------ > --- POWER ------------ Deuterium Engine > --- PROPULSION ------- Light Treads Light Treads Light Treads Advanced Treads > --- UTILITY ---------- Large Storage Unit High-capacity Storage Unit > --- WEAPON ----------- Minigun Minigun Light Cannon Light Cannon > --- INVENTORY -------- Light Treads High-capacity Matter Pod Advanced Terrain Scanner Targeting Computer Kinecellerator Kinecellerator Hardened Medium Armor Plating Improved Light Armor Plating Improved Light Armor Plating Improved Medium Armor Plating System Backup Module Enhanced Autogun Flak Gun Light Cannon Improved Grenade Launcher Improved Grenade Launcher Improved Grenade Launcher [Rating: 23] Favorites ----------- Power Deuterium Engine Engine Deuterium Engine Propulsion Light Treads Treads Light Treads Utility Large Storage Unit Storage Large Storage Unit Weapon Medium Laser Energy Gun Medium Laser Ballistic Gun Flak Gun Ballistic Cannon Light Cannon Launcher Improved Grenade Launcher Build | -11 -10 -10 -10 -9 -8 -7 ------- Run | Scr Mat Min Exi Min Mat Fac Slots Evolved 6 | . . . . . 4 2 Power . | . . . . . . . Propulsion 4 | . . . . . 4 . Utility . | . . . . . . . Weapon 2 | . . . . . . 2 Parts Attached 41 | 6 7 . 2 . 16 10 Power 2 | 1 . . . . 1 . Engine 2 | 1 . . . . 1 . Core . | . . . . . . . Reactor . | . . . . . . . Propulsion 15 | 2 . . 2 . 8 3 Treads 15 | 2 . . 2 . 8 3 Leg . | . . . . . . . Wheel . | . . . . . . . Hover . | . . . . . . . Flight . | . . . . . . . Utility 6 | 1 5 . . . . . Device . | . . . . . . . Storage 6 | 1 5 . . . . . Processor . | . . . . . . . Hackware . | . . . . . . . Protection . | . . . . . . . Artifact . | . . . . . . . Weapon 18 | 2 2 . . . 7 7 Energy Gun 7 | 2 2 . . . 3 . Energy Cannon . | . . . . . . . Ballistic Gun 5 | . . . . . 1 4 Ballistic Cannon 5 | . . . . . 3 2 Launcher 1 | . . . . . . 1 Special Weapon . | . . . . . . . Impact Weapon . | . . . . . . . Slashing Weapon . | . . . . . . . Piercing Weapon . | . . . . . . . Special Melee Weapon . | . . . . . . . Unidentified Prototypes 1 | . . . . . 1 . Parts Lost 14 | . 1 . . . . 13 Power 2 | . 1 . . . . 1 Propulsion 6 | . . . . . . 6 Utility . | . . . . . . . Weapon 6 | . . . . . . 6 Highest Loss Streak 13 | . 1 . . . . 13 Average Slot Usage (%) 88 | . 93 85 85 85 91 82 Engine 5 | . 10 . . . 7 5 Treads 35 | . 28 28 28 28 47 35 Storage 22 | . 25 28 28 28 18 15 Energy Gun 17 | . 28 28 28 28 5 . Ballistic Cannon 7 | . . . . . 12 23 Naked Turns . | . . . . . . . Heaviest Build 69 | 12 52 52 52 52 63 69 Greatest Support 122 | 40 40 40 40 40 122 122 Greatest Overweight (x) 17 | . 1 1 1 1 . 17 Average Overweight (x) . | . . 1 1 1 . . Largest Inventory Capacity 18 | 6 18 18 18 18 18 18 Average Capacity 15 | 5 10 18 18 18 18 18 Most Carried 18 | 1 11 13 15 15 18 18 Average Carried 12 | . 5 10 14 15 15 16 Final Capacity 18 | 6 18 18 18 18 18 18 Final Carried 18 | 1 9 13 15 15 18 13 Class Distribution -------------------- 48% | Mutant 34% | Commander-Mutant 9% | Scavenger-Gunner 7% | Scavenger-Mutant Dominant Class ---------------- Mutant | -10/Materials Mutant | -10/Mines Commander-Mutant | -10/Exiles Commander-Mutant | -9/Mines Commander-Mutant | -8/Materials Scavenger-Gunner | -7/Factory Resources | -11 -10 -10 -10 -9 -8 -7 ----------- Run | Scr Mat Min Exi Min Mat Fac Matter Collected 1721 | 217 83 . . 117 808 496 Remotely . | . . . . . . . Salvage Created 1714 | 77 389 . . . 774 474 Parts 91 | 3 25 . . . 40 23 Haulers Intercepted 1 | . . . . . . 1 Recyclers Shooed . | . . . . . . . Parts Field Recycled . | . . . . . . . Retrieved Matter . | . . . . . . . Parts Self-Destructed . | . . . . . . . Prevented . | . . . . . . . Kills | -11 -10 -10 -10 -9 -8 -7 ------- Run | Scr Mat Min Exi Min Mat Fac Combat Hostiles Destroyed 44 | . 12 . . . 19 13 Guns 16 | . 12 . . . 1 3 Cannons 27 | . . . . . 18 9 AOE 1 | . . . . . . 1 Classes Destroyed 11 | 1 3 . . . 3 4 Worker 4 | . . . . . 2 2 Builder 1 | . . . . . . 1 Hauler 1 | . . . . . . 1 Recycler 1 | 1 . . . . . . Mechanic 1 | . . . . . 1 . Watcher 4 | . 2 . . . 2 . Swarmer 10 | . 6 . . . 1 3 Grunt 21 | . 6 . . . 10 5 Duelist 1 | . . . . . . 1 Sentry 10 | . . . . . 8 2 Programmer 2 | . . . . . . 2 Best Kill Streak 6 | 1 3 . . . 6 5 Combat Bots Only 6 | . 3 . . . 6 4 Max Kills in Single Turn 2 | 1 2 . . . 1 2 Gunslinging 1 | . 1 . . . . . Exploded 1 | . . . . . . 1 Melee . | . . . . . . . Uniques/NPCs Destroyed . | . . . . . . . Combat | -11 -10 -10 -10 -9 -8 -7 -------- Run | Scr Mat Min Exi Min Mat Fac Damage Taken 3480 | . 458 . . 27 882 2113 Core 319 | . 81 . . 11 58 169 Absorbed by Shields . | . . . . . . . Core Remaining (%) 84 | 100 . . . 63 89 . Volleys Fired 147 | 3 35 . . 3 58 48 Largest 4 | 2 2 . . 2 2 4 Hottest 140 | 90 100 . . 100 100 140 Shots Fired 342 | 6 70 . . 6 116 144 Gun 121 | 6 70 . . 6 4 35 Cannon 220 | . . . . . 112 108 Launcher 1 | . . . . . . 1 Special . | . . . . . . . Kinetic 255 | . . . . . 112 143 Thermal 86 | 6 70 . . 6 4 . Explosive 1 | . . . . . . 1 Electromagnetic . | . . . . . . . Robot Hit Streak 32 | 2 17 . . 7 32 17 Robot Miss Streak 5 | 2 2 . . . 4 5 Penetration Max . | . . . . . . . Secondary Targets 3 | . 3 . . . . . Max Gunslinging Chain 1 | . 1 . . . . . Shots Hit Robots 245 | 3 55 . . 6 86 95 Core Hits 101 | 2 20 1 . . 40 38 Critical Hits 1 | . . . . . . 1 Critical Kills 1 | . . . . . . 1 Critical Parts Destroyed . | . . . . . . . Melee Attacks . | . . . . . . . Impact . | . . . . . . . Slashing . | . . . . . . . Piercing . | . . . . . . . Sneak Attacks . | . . . . . . . Combat Hostiles . | . . . . . . . Follow-up Attacks . | . . . . . . . Damage Inflicted 3972 | 36 692 3 . 77 1544 1620 Guns 1294 | 36 692 . . 77 50 439 Cannons 2501 | . . . . . 1494 1007 Explosions 136 | . . . . . . 136 Melee . | . . . . . . . Ramming 41 | . . 3 . . . 38 Kinetic 2940 | . . . . . 1494 1446 Thermal 855 | 36 692 . . 77 50 . Explosive 136 | . . . . . . 136 Electromagnetic . | . . . . . . . Impact . | . . . . . . . Slashing . | . . . . . . . Piercing . | . . . . . . . Highest Corruption 3 | . . . . . . 3 Average Corruption 2 | . . . . . . 2 Corruption Purged . | . . . . . . . Effects 3 | . . . . . . 3 Matter Fused 2 | . . . . . . 2 Targeting Errors 1 | . . . . . . 1 Overload Shots . | . . . . . . . Overflow Damage 32 | . . . . . 17 15 Projectiles 21 | . . . . . 17 4 Explosions 11 | . . . . . . 11 Melee . | . . . . . . . Knockbacks 24 | . . . . . 8 16 Impact . | . . . . . . . Kinetic 22 | . . . . . 8 14 Secondary 2 | . . . . . . 2 Self-Inflicted Damage 51 | . . . . . . 51 Shots 1 | . . . . . . 1 Rammed 4 | . . 1 . . . 3 Targets Rammed 4 | . . 1 . . . 3 Kicked . | . . . . . . . Crushed . | . . . . . . . Highest Temperature 405 | 90 282 . . 63 57 405 Average Temperature 93 | 47 84 . . 28 13 158 Received Heat Transfer 918 | . 126 . . 15 378 399 Effects 9 | . . . . . . 9 Shutdowns 1 | . . . . . . 1 Energy Bleed 2 | . . . . . . 2 Interference 5 | . . . . . . 5 Matter Decay 1 | . . . . . . 1 Siege Activations . | . . . . . . . Robots Corrupted . | . . . . . . . Combat Hostiles . | . . . . . . . Parts Fried . | . . . . . . . Impact Corruptions . | . . . . . . . Robots Melted . | . . . . . . . Combat Hostiles . | . . . . . . . Parts Melted 6 | . 5 . . . 1 . Heat Transferred 2324 | 99 1855 . . 222 148 . Parts Sabotaged . | . . . . . . . Parts Stolen . | . . . . . . . Parts Stripped . | . . . . . . . Power Chain Reactions . | . . . . . . . Missiles Intercepted . | . . . . . . . Alert | -11 -10 -10 -10 -9 -8 -7 ------- Run | Scr Mat Min Exi Min Mat Fac Peak Influence 474 | 5 184 . . 84 474 253 Initial 135 | . 3 . . . . 135 Average 122 | 1 48 . . 59 201 169 Maximum Alert Level 2 | . . . . . 2 1 Low Security (%) 72 | 100 100 100 . 100 40 64 Level 1 25 | . . . . . 55 35 Level 2 1 | . . . . . 4 . Level 3 . | . . . . . . . Level 4 . | . . . . . . . Level 5 . | . . . . . . . High Security . | . . . . . . . Max Security . | . . . . . . . Squads Dispatched 6 | . 2 . . . 2 2 Investigation 2 | . 1 . . . 1 . Extermination 2 | . . . . . . 2 Reinforcement 2 | . 1 . . . 1 . Assault . | . . . . . . . Garrison . | . . . . . . . Intercept . | . . . . . . . Construction Impeded . | . . . . . . . Haulers Reinforced . | . . . . . . . Stealth | -11 -10 -10 -10 -9 -8 -7 --------- Run | Scr Mat Min Exi Min Mat Fac Distress Signals 4 | . 1 . . . 2 1 Communications Jammed . | . . . . . . . Distress Signals . | . . . . . . . Times Spotted 73 | . 24 . . 3 32 14 Peak Tracking Total 7 | . 3 . . 3 7 6 Tactical Retreats 2 | . 2 . . . . . Traps | -11 -10 -10 -10 -9 -8 -7 ------- Run | Scr Mat Min Exi Min Mat Fac Traps Triggered 3 | . 3 . . . . . Indirectly . | . . . . . . . Trap Hack Attempts . | . . . . . . . Triggered . | . . . . . . . Disarmed . | . . . . . . . Reprogrammed . | . . . . . . . Reused . | . . . . . . . Traps Extracted . | . . . . . . . Installed . | . . . . . . . Triggered . | . . . . . . . Machines | -11 -10 -10 -10 -9 -8 -7 ---------- Run | Scr Mat Min Exi Min Mat Fac Machines Disabled 3 | . . . . . 3 . Max in Single Turn 1 | . . . . . 1 . Machines Sabotaged . | . . . . . . . Garrisons Compromised . | . . . . . . . Overloaded Fab Kills . | . . . . . . . Fab Network Shutdowns . | . . . . . . . Hacking | -11 -10 -10 -10 -9 -8 -7 --------- Run | Scr Mat Min Exi Min Mat Fac Machines Accessed 20 | . 7 1 3 . 7 2 Terminals 13 | . 7 . . . 5 1 Fabricators 1 | . . . . . . 1 Repair Stations . | . . . . . . . Recycling Units . | . . . . . . . Scanalyzers 2 | . . . . . 2 . Garrison Access . | . . . . . . . Total Hacks 69 | . 27 1 17 . 16 8 Successful 48 | . 16 1 17 . 10 4 Failed 21 | . 11 . . . 6 4 Catastrophic 1 | . . . . . 1 . Database Lockouts . | . . . . . . . Manual 32 | . 20 . . . 11 1 Terminals 45 | . 27 . . . 12 6 Fabricators 2 | . . . . . . 2 Repair Stations . | . . . . . . . Recycling Units . | . . . . . . . Scanalyzers 4 | . . . . . 4 . Garrison Access . | . . . . . . . Terminal Hacks 32 | . 11 1 17 . 1 2 Record 18 | . 1 . 17 . . . Robot Analysis 3 | . 3 . . . . . Prototype ID Bank 4 | . 3 . . . . 1 Open Door 1 | . . 1 . . . . Terminal Index 2 | . 1 . . . . 1 Unreport Threat 2 | . 1 . . . 1 . Recall Investigation 1 | . 1 . . . . . Zone Layout 1 | . 1 . . . . . Fabricator Hacks 1 | . . . . . . 1 Network Status 1 | . . . . . . 1 Repair Station Hacks . | . . . . . . . Recycling Unit Hacks . | . . . . . . . Scanalyzer 4 | . . . . . 4 . Insert Component 2 | . . . . . 2 . Analyze 2 | . . . . . 2 . Garrison Access Hacks . | . . . . . . . Unauthorized Hacks 11 | . 5 . . . 5 1 Terminals 11 | . 5 . . . 5 1 Track 3 | . 1 . . . 2 . Assimilate 2 | . 2 . . . . . Botnet 3 | . 1 . . . 2 . Operators 3 | . 1 . . . 1 1 Fabricators . | . . . . . . . Repair Stations . | . . . . . . . Recycling Units . | . . . . . . . Scanalyzers . | . . . . . . . Garrison Access . | . . . . . . . Data Cores Recovered . | . . . . . . . Used . | . . . . . . . Hacking Detections 12 | . 4 . . . 6 2 Full Trace Events 1 | . 1 . . . . . Feedback Events . | . . . . . . . Feedback Blocked . | . . . . . . . Robot Schematics Acquired . | . . . . . . . Robots Built . | . . . . . . . Matter . | . . . . . . . Time . | . . . . . . . Total Robot Build Rating . | . . . . . . . Part Schematics Acquired 2 | . . . . . 2 . Parts Built . | . . . . . . . Matter . | . . . . . . . Time . | . . . . . . . Total Part Build Rating . | . . . . . . . Parts Repaired . | . . . . . . . Time . | . . . . . . . Parts Recycled . | . . . . . . . Recycled Matter . | . . . . . . . Retrieved Matter . | . . . . . . . Retrieved Components . | . . . . . . . Parts Scanalyzed 2 | . . . . . 2 . Part Schematics Acquired 2 | . . . . . 2 . Parts Damaged 2 | . . . . . 2 . Bothacking | -11 -10 -10 -10 -9 -8 -7 ------------ Run | Scr Mat Min Exi Min Mat Fac Used RIF Installer . | . . . . . . . Robots Hacked . | . . . . . . . Non-combat . | . . . . . . . Combat . | . . . . . . . Robot Hacks Applied . | . . . . . . . Relay Couplers Released . | . . . . . . . Robots Rewired 4 | . . . 4 . . . Allies Hacked . | . . . . . . . Hacks Repelled . | . . . . . . . Allies | -11 -10 -10 -10 -9 -8 -7 -------- Run | Scr Mat Min Exi Min Mat Fac Total Allies 5 | . 1 . 4 . . . Largest Group 5 | . 1 1 5 5 5 . Highest-Rated Group 55 | . 10 10 55 55 55 . Highest-Rated Ally 21 | . 10 10 21 21 21 . Total Orders . | . . . . . . . Ally Attacks 55 | . . . . 15 40 . Total Damage 807 | . . . . 221 586 . Kills 12 | . . . . 3 9 . Allies Corrupted . | . . . . . . . Allies Melted . | . . . . . . . Intel | -11 -10 -10 -10 -9 -8 -7 ------- Run | Scr Mat Min Exi Min Mat Fac Robot Analysis Total 3 | . 3 . . . . . Derelict Logs Recovered 2 | . . . . 2 . . Drone Launches . | . . . . . . . Drone Recoveries . | . . . . . . . Exploration | -11 -10 -10 -10 -9 -8 -7 ------------- Run | Scr Mat Min Exi Min Mat Fac Turns Passed 5494 | 82 1312 232 854 555 1644 815 Spaces Moved 2779 | 42 702 121 409 300 875 330 Core 18 | 3 . . . . . 15 Treads 2761 | 39 702 121 409 300 875 315 Legs . | . . . . . . . Wheels . | . . . . . . . Hover . | . . . . . . . Flight . | . . . . . . . Fastest Speed 50 | 50 160 180 180 180 157 156 Average Speed 169 | 152 161 180 180 180 159 190 Slowest Speed 900 | 160 180 180 180 180 160 900 Overloaded Moves . | . . . . . . . Propulsion Burnouts . | . . . . . . . Robots Hopped . | . . . . . . . Cave-ins Triggered . | . . . . . . . Exploration Rate (%) 53 | 5 95 32 88 74 70 9 Regions Visited 6 Branch Regions 3 Pre-discovered Areas 2 | . . . 1 1 . . Known Exits Taken . | . . . . . . . Unknown Exits Taken 6 | 1 1 1 1 1 1 . Scrap Searched 1 | . . . . 1 . . Spaces Dug . | . . . . . . . Terrain Destroyed 5 | . . . . . . 5 Melee . | . . . . . . . Projectile . | . . . . . . . AOE 5 | . . . . . . 5 Terrain Rammed . | . . . . . . . Walls Destroyed . | . . . . . . . Machines Disabled . | . . . . . . . Actions | -11 -10 -10 -10 -9 -8 -7 --------- Run | Scr Mat Min Exi Min Mat Fac Total 3266 | 51 807 135 527 309 1016 421 Wait 101 | . 50 10 . 7 16 18 Move 2773 | 41 701 120 408 299 874 330 Hop . | . . . . . . . Pick Up 44 | 1 8 4 2 . 23 6 Fast Attach 15 | 6 1 . . . 8 . Attach 9 | . . . . . 2 7 Detach . | . . . . . . . Swap 17 | . 6 . 2 . 6 3 Drop 43 | . 6 . 2 . 29 6 Fire 147 | 3 35 . . 3 58 48 Melee . | . . . . . . . Ram . | . . . . . . . Kick . | . . . . . . . Crush 4 | . . 1 . . . 3 Escape Stasis . | . . . . . . . Rewire 113 | . . . 113 . . . Trap . | . . . . . . . Miscellaneous . | . . . . . . . Route ------- -11/Scrapyard -10/Materials (discovered 5 exits: [*Mat x3] / *Min x2) -10/Mines (discovered 2 exits: [*Mat] / *Exi) -10/Exiles -9/Mines -8/Materials (discovered 2 exits: *Fac / [*Sto]) -7/Factory (discovered 2 exits: [*Low x2]) History --------- Turn | Location | Event 6 | -11/Scrapyard | Discovered new exit (range 15) 83 | -11/Scrapyard | Entered Materials 272 | -10/Materials | Discovered new exit (range 5) 312 | -10/Materials | Build established: Mutant 469 | -10/Materials | Discovered new exit (range 8) 606 | -10/Materials | Discovered new exit (range 16) 1106 | -10/Materials | Discovered new exit (range 15) 1148 | -10/Materials | Discovered new exit (range 6) 1395 | -10/Materials | Entered Mines 1395 | -10/Mines | Accompanied by 1 ally 1439 | -10/Mines | Met a Derelict bent on vengeance 1496 | -10/Mines | A weapon hastily lodged in a ceiling crevice suddenly fell to the ground 1517 | -10/Mines | Discovered new exit (range 7) 1534 | -10/Mines | Met a Derelict who couldn't figure out how to use a Trap Extractor 1613 | -10/Mines | Deemed a non-threat by the Exiles lab entrance 1615 | -10/Mines | Discovered new exit (range 5) 1627 | -10/Mines | Entered Exiles 1627 | -10/Exiles | Found Exiles lab destroyed 1627 | -10/Exiles | Accompanied by 1 ally 2203 | -10/Exiles | Build established: Commander-Mutant 2376 | -10/Exiles | Learned location of Zion (-6) 2456 | -10/Exiles | Discovered new exit (range 14) 2481 | -10/Exiles | Entered Mines 2481 | -9/Mines | Accompanied by 5 allies 2987 | -9/Mines | Learned Materials terminal intel 3009 | -9/Mines | Discovered new exit (range 9) 3036 | -9/Mines | Entered Materials 3036 | -8/Materials | Accompanied by 5 allies 3036 | -8/Materials | Evolved 4 slots: Propulsion x4 3037 | -8/Materials | Loaded intel: 11 terminal locations 4064 | -8/Materials | Build established: Mutant 4246 | -8/Materials | Discovered new exit (range 12) 4661 | -8/Materials | Discovered new exit (range 10) 4666 | -8/Materials | Build established: Scavenger-Mutant 4680 | -8/Materials | Entered Factory 4680 | -7/Factory | Evolved 2 slots: Weapon x2 4766 | -7/Factory | Discovered new exit (range 15) 4880 | -7/Factory | Discovered new exit (range 10) 5001 | -7/Factory | Build established: Scavenger-Gunner 5379 | -7/Factory | Lost 13 parts (1p6n6w) 5495 | -7/Factory | Self-destructed Last Messages --------------- 05436_ K-01 Serf cleans the Fabricator. 05445_ R-06 Scavenger collects Lgt. Nuclear Core. 05445_ K-01 Serf cleans the Fabricator. 05448_ R-06 Scavenger collects Aluminum Leg. 05448_ K-01 Serf cleans the Neutrino Reactor. 05450_ Acquired 56 matter. 05452_ K-01 Serf cleans the Fabricator. 05453_ R-06 Scavenger collects Gravmag System. 05454_ K-01 Serf cleans the Neutrino Reactor. 05454_ K-01 Serf cleans the Fabricator. 05456_ R-06 Scavenger collects Particle Gun. 05460_ K-01 Serf cleans the Fabricator. 05462_ K-01 Serf collects debris. 05462_ K-01 Serf cleans the Fabricator. 05466_ K-01 Serf cleans the Neutrino Reactor. 05466_ R-06 Scavenger collects Aluminum Leg. 05467_ K-01 Serf cleans the Fabricator. 05469_ K-01 Serf cleans the Neutrino Reactor. 05472_ System corrupted: Matter fused (-9). 05476_ K-01 Serf cleans the Fabricator. Map ----- +----------------------------------------------------+ | ?????????????????????????????????????????????????? | | ?????????????????????????????????????????????????? | | ?????????###########################?????????????? | | ?????????# # #?????????????? | | ?????????# # #?????????????? | | ?????????# # #?????????????? | | ?????????# # #??????????#### | | ?????????# # #??????????# | | #+###????# !! # #??????????# | | ????+ !! # #??????????# " | | #????# !! # #??????????# " | | #????# # #??????????# " | | #????# # #??????????# | | #????# # #??????????# " | | #????# # #??????????# " | | " #????######+#############+################# " | | " ######### ######### + | ## | | " # T # # !# # ## | | " + # # # # ##### | | # * #=! # # " #?#!% | | ]]]# + | # """ + # """ """ ###!! | | ]]]# """ #! # """ # # """ """ + [! | | ]] # """ # # """ # # """ """ ### | | # """ # ! # # # #?# | | # # [# p # # """ """ #?### | | "" # """ # / "" ""@#% + """ """ #???# | | G" # """ + # ""F"" + # """ """ ##### | | "" # """ # # """ # # + | | ? # # # # ####+######### | | ? ######### ######### #??? ######### | | ? ??????? = | | ? ????? # | | ? ??? """ # | | ?????" """" """" """" """" """ # | | ???""" """" """" """" """" """ # | | ????"" """" """" """" """" # | | ???????"""" """" """??"""" + | | ?????????"" """" """????"" # | | ?????????"" ???" "????"""" ""T"" # | | ??????????"????? "?????""" """"" ##### ## | | ???????????????? ?????? ############## ## | | ???????????????? ???????? # + ## | | ?????????????############## # ## #? | | ?????????????# # # """"""" ## #? | | ?????????????# # # """"""" ## #? | | ?????????????# ! # # """"""" ## #? | | ?????????????# # # """"""" ## #? | | ?????????????# + + ## #? | | ?????????????# # # """"""" ## #? | | ?????????????# !! # # """"""" ## #? | +----------------------------------------------------+ Best States ------------- Heat Dissipation 34 Energy Generation 14 Energy Capacity 275 Matter Stores 300 Matter Capacity 300 Sight Range 16 Terrain Scan Density 10 Evasion (%) 40 Recoil Reduction 6 Item Schematics ----------------- Hpw. Shotgun | -8/Materials | Scanalyzed Enh. Autogun | -8/Materials | Scanalyzed Robot Schematics ------------------ None Fabricated ------------ Nothing Alien Tech Used ----------------- None Achievements -------------- None Challenges ------------ None Game ------ Seed RagnarokAccelerationLaser Manual? 0 Play Time 00:25:56 Cumulative 91.9 hours Start 2021.08.08 @ 08:42:29 End 2021.08.08 @ 19:25:24 Sessions 3 Manual Loads 0 Difficulty Rogue Special Mode None Game No. 158 Rogue 146 Adventurer 4 Explorer 8 Win Type - Total 6 Types 5/0/0/1/0/0/0/0/0 Lore% 60 Gallery% 78 Achievement% 56 Wizard Run 0 Options --------- ASCII 0 Keyboard 1 Movement Numpad Keybinds 0 Fullscreen 1 Font 18/SmallcapsGlow Map View 76x50 Tactical HUD 1 Map Filters NONE Filters NONE Steam 1 RUN: 8f2a30d0-bcd4-4aaa-ac7a-c3b142d04f55